[Event "7th Francophone-ch 2019"]
[Site "Paris"]
[Date "2019.08.08"]
[Round "5.5"]
[White "Mastrovasilis, Athanasios"]
[Black "Sandu, Mihaela"]
[Result "1-0"]
[ECO "D02"]
[WhiteElo "2518"]
[BlackElo "2286"]
[Annotator "ChessBase"]
[PlyCount "83"]
[EventDate "2019.08.04"]
[EventType "swiss"]
[EventCountry "FRA"]
[SourceTitle "playchess.com"]
[Source "ChessBase"]
[SourceQuality "1"]
[TimeControl "40/5400+30:1800+30"]

1. d4 {[%emt 0:03:13]} Nf6 {[%emt 0:00:00]} 2. Nf3 {[%emt 0:00:18]} g6 {[%emt 0:00:00]} 3. g3 {[%emt 0:00:23]} Bg7 {[%emt 0:00:06]} 4. Bg2 {[%emt 0:00:06]} d5 {[%emt 0:02:56]} 5. O-O {[%emt 0:01:32]} O-O {[%emt 0:00:03]} 6. c3 {[%emt 0:00:41]} Bf5 {[%emt 0:06:00]} 7. Nbd2 {[%emt 0:02:37]} c6 {[%emt 0:03:08]} 8. Nh4 {[%emt 0:01:23]} Bg4 {[%emt 0:00:31]} 9. h3 {[%emt 0:08:08]} Bc8 {[%emt 0:03:05]} 10. Re1 {[%emt 0:08:48]} Nbd7 {[%emt 0:08:52]} 11. Nhf3 {[%emt 0:14:44]} c5 {[%emt 0:09:09]} 12. a4 {[%emt 0:06:47]} Qc7 {[%emt 0:08:17]} 13. e4 {[%emt 0:12:30]} cxd4 {[%emt 0:13:31]} 14. Nxd4 {[%emt 0:01:05]} dxe4 {[%emt 0:00:40]} 15. Nxe4 {[%emt 0:02:12]} Nxe4 {[%emt 0:00:05]} 16. Rxe4 {[%emt 0:02:02]} Nc5 {[%emt 0:01:28]} 17. Nb5 {[%emt 0:10:19]} Qd8 {[%emt 0:01:49]} 18. Rd4 {[%emt 0:02:55]} Bxd4 {[%emt 0:08:04]} 19. cxd4 {[%emt 0:00:02]} a6 {[%emt 0:01:43]} 20. Nc3 {[%emt 0:00:39]} Nd7 {[%emt 0:00:09]} 21. Bh6 {[%emt 0:00:50]} Re8 {[%emt 0:00:24]} 22. Rc1 {[%emt 0:05:13]} Nf6 {[%emt 0:02:50]} 23. g4 {[%emt 0:00:12]} Be6 {[%emt 0:06:23]} 24. d5 {[%emt 0:01:24]} Bd7 {[%emt 0:00:03]} 25. Qd4 {[%emt 0:01:38]} Rc8 {[%emt 0:03:01]} 26. Re1 {[%emt 0:00:34]} b5 {[%emt 0:10:34]} 27. axb5 {[%emt 0:00:25]} axb5 {[%emt 0:00:04]} 28. Bf1 {[%emt 0:06:10]} Bc6 {[%emt 0:01:18]} 29. Rd1 {[%emt 0:01:11]} e5 {[%emt 0:05:58]} 30. Qe3 {[%emt 0:00:44]} Nxd5 {[%emt 0:00:43]} 31. Nxd5 {[%emt 0:01:08]} Bxd5 {[%emt 0:00:28]} 32. Bg2 {[%emt 0:00:31]} e4 {[%emt 0:00:40]} 33. Qd4 {[%emt 0:00:22]} f6 {[%emt 0:00:03]} 34. Qxd5+ {[%emt 0:00:19]} Qxd5 {[%emt 0:00:04]} 35. Rxd5 {[%emt 0:00:05]} g5 {[%emt 0:02:50]} 36. h4 {[%emt 0:02:19]} Rc1+ {[%emt 0:00:38]} 37. Kh2 {[%emt 0:00:01]} Rc2 {[%emt 0:01:18]} 38. Rf5 {[%emt 0:01:01]} gxh4 {[%emt 0:00:53]} 39. Rxf6 {[%emt 0:00:46]} Rxb2 {[%emt 0:00:05]} 40. Bxe4 {[%emt 0:00:47]} b4 {[%emt 0:00:43]} 41. Bd5+ {[%emt 0:30:47]} Kh8 {[%emt 0:30:05]} 42. Rf7 {[%emt 0:01:22]} 1-0

[Event "7th Francophone-ch 2019"]
[Site "Paris"]
[Date "2019.08.08"]
[Round "5.6"]
[White "Macon, Arthur"]
[Black "Flom, Gabriel"]
[Result "0-1"]
[ECO "A49"]
[WhiteElo "2270"]
[BlackElo "2494"]
[Annotator "ChessBase"]
[PlyCount "96"]
[EventDate "2019.08.04"]
[EventType "swiss"]
[EventCountry "FRA"]
[SourceTitle "playchess.com"]
[Source "ChessBase"]
[SourceQuality "1"]
[TimeControl "40/5400+30:1800+30"]

1. Nf3 {[%emt 0:00:00]} Nf6 {[%emt 0:00:00]} 2. g3 {[%emt 0:00:11]} g6 {[%emt 0:00:00]} 3. b3 {[%emt 0:01:06]} Bg7 {[%emt 0:00:00]} 4. Bb2 {[%emt 0:00:18]} d6 {[%emt 0:00:00]} 5. d4 {[%emt 0:00:27]} O-O {[%emt 0:00:19]} 6. Bg2 {[%emt 0:00:44]} a5 {[%emt 0:09:30]} 7. a4 {[%emt 0:07:26]} c6 {[%emt 0:00:30]} 8. O-O {[%emt 0:01:02]} Ne4 {[%emt 0:05:57]} 9. Nfd2 {[%emt 0:09:35]} Nxd2 {[%emt 0:00:03]} 10. Qxd2 {[%emt 0:00:23]} f5 {[%emt 0:05:49]} 11. Na3 {[%emt 0:11:51]} d5 {[%emt 0:01:31]} 12. f3 {[%emt 0:02:42]} f4 {[%emt 0:01:11]} 13. e4 {[%emt 0:05:26]} e6 {[%emt 0:21:09]} 14. Rae1 {[%emt 0:02:59]} Nd7 {[%emt 0:12:35]} 15. Bh3 {[%emt 0:02:20]} Nb6 {[%emt 0:10:29]} 16. Kg2 {[%emt 0:08:47]} Bd7 {[%emt 0:04:13]} 17. Bc3 {[%emt 0:08:19]} dxe4 {[%emt 0:08:50]} 18. fxe4 {[%emt 0:03:54]} f3+ {[%emt 0:00:18]} 19. Kh1 {[%emt 0:00:40]} e5 {[%emt 0:00:02]} 20. Bxd7 {[%emt 0:00:54]} Qxd7 {[%emt 0:02:50]} 21. Bxa5 {[%emt 0:12:35]} f2 {[%emt 0:05:22]} 22. Re2 {[%emt 0:01:55]} Qg4 {[%emt 0:00:05]} 23. Rexf2 {[%emt 0:02:02]} Qxe4+ {[%emt 0:00:07]} 24. Kg1 {[%emt 0:00:15]} Rxf2 {[%emt 0:01:24]} 25. Rxf2 {[%emt 0:00:20]} Nd5 {[%emt 0:00:08]} 26. Re2 {[%emt 0:03:17]} Qxd4+ {[%emt 0:00:43]} 27. Qxd4 {[%emt 0:02:59]} exd4 {[%emt 0:00:01]} 28. Bd2 {[%emt 0:00:17]} b5 {[%emt 0:00:10]} 29. Re6 {[%emt 0:09:54]} Bf8 {[%emt 0:01:22]} 30. Rxc6 {[%emt 0:01:38]} Bxa3 {[%emt 0:02:32]} 31. axb5 {[%emt 0:00:11]} Rb8 {[%emt 0:00:05]} 32. Bh6 {[%emt 0:00:44]} Rxb5 {[%emt 0:01:17]} 33. Rc8+ {[%emt 0:00:22]} Kf7 {[%emt 0:00:01]} 34. Rh8 {[%emt 0:00:36]} Nf6 {[%emt 0:00:15]} 35. Ra8 {[%emt 0:00:39]} Bc5 {[%emt 0:02:22]} 36. Kg2 {[%emt 0:00:07]} d3 {[%emt 0:00:14]} 37. cxd3 {[%emt 0:00:09]} Rxb3 {[%emt 0:00:01]} 38. Rc8 {[%emt 0:00:44]} Rb2+ {[%emt 0:00:15]} 39. Kf1 {[%emt 0:00:53]} Rxh2 {[%emt 0:01:25]} 40. Rxc5 {[%emt 0:00:46]} Rxh6 {[%emt 0:00:06]} 41. Kg2 {[%emt 0:00:40]} Rh5 {[%emt 0:00:00]} 42. Rc7+ {[%emt 0:00:14]} Ke6 {[%emt 0:00:00]} 43. Kf3 {[%emt 0:00:24]} Rf5+ {[%emt 0:00:17]} 44. Ke2 {[%emt 0:00:23]} Re5+ {[%emt 0:00:25]} 45. Kf3 {[%emt 0:02:26]} Kf5 {[%emt 0:00:08]} 46. Rf7 {[%emt 0:01:58]} h5 {[%emt 0:00:07]} 47. Rf8 {[%emt 0:00:37]} Rd5 {[%emt 0:00:13]} 48. Ke3 {[%emt 0:00:21]} Rd6 {[%emt 0:00:34]} 0-1

[Event "7th Francophone-ch 2019"]
[Site "Paris"]
[Date "2019.08.08"]
[Round "5.7"]
[White "Defromont, Benjamin"]
[Black "Aloma Vidal, Robert"]
[Result "0-1"]
[ECO "B07"]
[WhiteElo "2245"]
[BlackElo "2419"]
[Annotator "NA"]
[PlyCount "110"]
[EventDate "2019.08.04"]
[EventType "swiss"]
[EventCountry "FRA"]
[SourceTitle "playchess.com"]
[Source "ChessBase"]
[SourceQuality "1"]
[TimeControl "40/5400+30:1800+30"]

1. e4 {[%emt 0:00:00]} g6 {[%emt 0:07:11]} 2. d4 {[%emt 0:00:02]} Bg7 {[%emt 0:00:06]} 3. Nf3 {[%emt 0:00:20]} c6 {[%emt 0:00:52]} 4. Nbd2 {[%emt 0:05:45]} d6 {[%emt 0:01:26]} 5. Bd3 {[%emt 0:00:57]} Nf6 {[%emt 0:00:15]} 6. O-O {[%emt 0:00:26]} O-O {[%emt 0:00:05]} 7. Re1 {[%emt 0:00:57]} Nbd7 {[%emt 0:00:17]} 8. Nf1 {[%emt 0:01:27]} e5 {[%emt 0:00:21]} 9. c3 {[%emt 0:02:08]} Re8 {[%emt 0:00:37]} 10. Ng3 {[%emt 0:02:37]} Qc7 {[%emt 0:01:17]} 11. h3 {[%emt 0:03:01]} Nf8 {[%emt 0:04:08]} 12. Be3 {[%emt 0:04:04]} Ne6 {[%emt 0:03:34]} 13. Qd2 {[%emt 0:02:29]} h5 {[%emt 0:02:48]} 14. a4 {[%emt 0:12:41]} a5 {[%emt 0:05:29]} 15. Rad1 {[%emt 0:07:29]} Nd7 {[%emt 0:03:07]} 16. Bc4 {[%emt 0:03:56]} Nb6 {[%emt 0:02:07]} 17. Bb3 {[%emt 0:02:27]} exd4 {[%emt 0:00:26]} 18. cxd4 {[%emt 0:08:01]} d5 {[%emt 0:00:42]} 19. Bh6 {[%emt 0:04:23]} Bd7 {[%emt 0:05:36]} 20. Bxg7 {[%emt 0:02:49]} Kxg7 {[%emt 0:00:17]} 21. Ng5 {[%emt 0:02:20]} h4 {[%emt 0:05:53]} 22. Nxe6+ {[%emt 0:32:41]} Rxe6 {[%emt 0:04:32]} 23. Nf1 {[%emt 0:00:00]} Rxe4 {[%emt 0:03:20]} 24. Rxe4 {[%emt 0:00:00]} dxe4 {[%emt 0:00:02]} 25. Qg5 {[%emt 0:00:00]} Qd6 {[%emt 0:06:51]} 26. Ne3 {[%emt 0:00:00]} Qb4 {[%emt 0:05:12]} 27. Bc2 {[%emt 0:00:00]} Re8 {[%emt 0:06:51]} 28. b3 {[%emt 0:00:00]} f5 {[%emt 0:03:14]} 29. Qxh4 {[%emt 0:00:00]} Be6 {[%emt 0:01:35]} 30. Qf4 {[%emt 0:00:00]} Nd5 {[%emt 0:01:27]} 31. Qe5+ {[%emt 0:00:00]} Nf6 {[%emt 0:01:04]} 32. Qc5 {[%emt 0:00:00]} Qxc5 {[%emt 0:04:42]} 33. dxc5 {[%emt 0:00:00]} f4 {[%emt 0:02:14]} 34. Nf1 {[%emt 0:00:00]} Bd5 {[%emt 0:02:04]} 35. Rb1 {[%emt 0:02:33]} Nd7 {[%emt 0:01:07]} 36. b4 {[%emt 0:00:05]} axb4 {[%emt 0:00:04]} 37. Rxb4 {[%emt 0:00:08]} Nxc5 {[%emt 0:00:08]} 38. Rb1 {[%emt 0:01:11]} Kf6 {[%emt 0:01:20]} 39. g3 {[%emt 0:01:47]} g5 {[%emt 0:00:49]} 40. Re1 {[%emt 0:01:23]} Ke5 {[%emt 0:08:50]} 41. f3 {[%emt 0:07:30]} Kd4 {[%emt 0:00:39]} 42. fxe4 {[%emt 0:02:41]} Nxe4 {[%emt 0:01:41]} 43. h4 {[%emt 0:03:44]} gxh4 {[%emt 0:00:38]} 44. gxf4 {[%emt 0:00:23]} Rg8+ {[%emt 0:02:25]} 45. Kh2 {[%emt 0:00:13]} Rf8 {[%emt 0:05:05]} 46. Bxe4 {[%emt 0:05:47]} Bxe4 {[%emt 0:00:05]} 47. Nd2 {[%emt 0:00:04]} Rxf4 {[%emt 0:01:34]} 48. Nb3+ {[%emt 0:02:29]} Kd5 {[%emt 0:02:11]} 49. Rd1+ {[%emt 0:00:14]} Ke5 {[%emt 0:02:46]} 50. Nc5 {[%emt 0:01:00]} b6 {[%emt 0:04:52]} 51. Nd7+ {[%emt 0:00:19]} Kf5 {[%emt 0:00:04]} 52. Nxb6 {[%emt 0:01:25]} Rf2+ {[%emt 0:00:28]} 53. Kh3 {[%emt 0:00:12]} Kg5 {[%emt 0:00:48]} 54. Rg1+ {[%emt 0:01:00]} Kh5 {[%emt 0:00:14]} 55. Rg4 {[%emt 0:00:18]} Bf5 {[%emt 0:00:14]} 0-1

[Event "7th Francophone-ch 2019"]
[Site "Paris"]
[Date "2019.08.08"]
[Round "5.8"]
[White "Berend, Elvira"]
[Black "Dudognon, Thibault"]
[Result "1-0"]
[ECO "C55"]
[WhiteElo "2344"]
[BlackElo "2247"]
[Annotator "NA"]
[PlyCount "91"]
[EventDate "2019.08.04"]
[EventType "swiss"]
[EventCountry "FRA"]
[SourceTitle "playchess.com"]
[Source "ChessBase"]
[SourceQuality "1"]
[TimeControl "40/5400+30:1800+30"]

1. e4 {[%emt 0:04:29]} e5 {[%emt 0:00:00]} 2. Bc4 {[%emt 0:00:18]} Nf6 {[%emt 0:00:00]} 3. d3 {[%emt 0:00:06]} Be7 {[%emt 0:00:24]} 4. Nf3 {[%emt 0:02:16]} Nc6 {[%emt 0:00:08]} 5. O-O {[%emt 0:00:16]} O-O {[%emt 0:00:05]} 6. a3 {[%emt 0:01:37]} d6 {[%emt 0:04:23]} 7. h3 {[%emt 0:00:23]} h6 {[%emt 0:02:03]} 8. Nc3 {[%emt 0:02:38]} Be6 {[%emt 0:02:50]} 9. Bxe6 {[%emt 0:03:28]} fxe6 {[%emt 0:00:06]} 10. d4 {[%emt 0:00:12]} exd4 {[%emt 0:04:20]} 11. Nxd4 {[%emt 0:00:06]} Nxd4 {[%emt 0:00:56]} 12. Qxd4 {[%emt 0:00:07]} e5 {[%emt 0:03:58]} 13. Qc4+ {[%emt 0:03:58]} Kh8 {[%emt 0:00:16]} 14. Nd5 {[%emt 0:00:22]} Nxd5 {[%emt 0:02:30]} 15. exd5 {[%emt 0:06:05]} Qd7 {[%emt 0:01:46]} 16. Be3 {[%emt 0:01:40]} c5 {[%emt 0:06:30]} 17. Qe4 {[%emt 0:03:02]} Qf5 {[%emt 0:03:12]} 18. Qxf5 {[%emt 0:02:30]} Rxf5 {[%emt 0:00:04]} 19. c4 {[%emt 0:01:10]} Bg5 {[%emt 0:04:22]} 20. b4 {[%emt 0:14:30]} b6 {[%emt 0:01:36]} 21. bxc5 {[%emt 0:01:52]} bxc5 {[%emt 0:01:39]} 22. Rab1 {[%emt 0:01:02]} Rf7 {[%emt 0:00:56]} 23. Rb3 {[%emt 0:05:03]} Kg8 {[%emt 0:03:29]} 24. Rfb1 {[%emt 0:01:03]} Bxe3 {[%emt 0:00:08]} 25. fxe3 {[%emt 0:02:18]} Raf8 {[%emt 0:00:14]} 26. Rb7 {[%emt 0:00:28]} Rxb7 {[%emt 0:01:08]} 27. Rxb7 {[%emt 0:00:07]} Rf7 {[%emt 0:00:08]} 28. Rb8+ {[%emt 0:00:23]} Rf8 {[%emt 0:00:31]} 29. Rb5 {[%emt 0:01:04]} Rf7 {[%emt 0:05:03]} 30. a4 {[%emt 0:07:46]} g6 31. a5 {[%emt 0:35:11]} Kg7 {[%emt 0:03:37]} 32. a6 {[%emt 0:00:00]} Kg8 {[%emt 0:00:34]} 33. Rb8+ {[%emt 0:00:00]} Rf8 34. Rb7 Rf7 35. Kh2 {[%emt 0:00:00]} g5 {[%emt 0:01:30]} 36. h4 {[%emt 0:00:00]} g4 {[%emt 0:42:20]} 37. h5 {[%emt 0:00:00]} Rf2 {[%emt 0:01:14]} 38. Rxa7 {[%emt 0:00:00]} Ra2 {[%emt 0:00:05]} 39. Kg3 {[%emt 0:00:00]} Ra4 {[%emt 0:00:07]} 40. e4 {[%emt 0:00:00]} Rxc4 {[%emt 0:01:37]} 41. Rb7 {[%emt 0:00:28]} Rxe4 {[%emt 0:30:05]} 42. a7 {[%emt 0:00:07]} Ra4 {[%emt 0:00:04]} 43. Rb8+ {[%emt 0:00:06]} Kf7 {[%emt 0:00:03]} 44. a8=Q {[%emt 0:00:05]} Rxa8 {[%emt 0:00:03]} 45. Rxa8 {[%emt 0:00:06]} Kf6 {[%emt 0:00:08]} 46. Kxg4 {[%emt 0:00:10]} 1-0

[Event "7th Francophone-ch 2019"]
[Site "Paris"]
[Date "2019.08.08"]
[Round "5.9"]
[White "Daurelle, Herve"]
[Black "Mastrovasilis, Dimitrios"]
[Result "0-1"]
[ECO "B47"]
[WhiteElo "2185"]
[BlackElo "2589"]
[Annotator "ChessBase"]
[PlyCount "66"]
[EventDate "2019.08.04"]
[EventType "swiss"]
[EventCountry "FRA"]
[SourceTitle "playchess.com"]
[Source "ChessBase"]
[SourceQuality "1"]
[TimeControl "40/5400+30:1800+30"]

1. e4 {[%emt 0:01:19]} c5 {[%emt 0:00:59]} 2. Nf3 {[%emt 0:00:10]} e6 {[%emt 0:00:31]} 3. d4 {[%emt 0:00:08]} cxd4 {[%emt 0:00:09]} 4. Nxd4 {[%emt 0:00:05]} Nc6 {[%emt 0:00:15]} 5. Nc3 {[%emt 0:00:17]} Qc7 {[%emt 0:00:27]} 6. Be2 {[%emt 0:00:18]} a6 {[%emt 0:00:11]} 7. O-O {[%emt 0:00:30]} b5 {[%emt 0:00:14]} 8. Nxc6 {[%emt 0:00:22]} dxc6 {[%emt 0:00:10]} 9. Be3 {[%emt 0:04:04]} Bb7 {[%emt 0:00:25]} 10. f4 {[%emt 0:01:01]} Be7 {[%emt 0:00:31]} 11. Bf3 {[%emt 0:08:08]} c5 {[%emt 0:02:48]} 12. f5 {[%emt 0:07:03]} e5 {[%emt 0:01:26]} 13. Nd5 {[%emt 0:00:19]} Bxd5 {[%emt 0:00:11]} 14. exd5 {[%emt 0:00:56]} Rd8 {[%emt 0:06:18]} 15. Be4 {[%emt 0:17:24]} Nf6 {[%emt 0:09:37]} 16. Qf3 {[%emt 0:03:50]} c4 {[%emt 0:00:36]} 17. Rad1 {[%emt 0:02:47]} Bc5 {[%emt 0:05:21]} 18. Bxc5 {[%emt 0:06:12]} Qxc5+ {[%emt 0:00:09]} 19. Kh1 {[%emt 0:00:03]} h5 {[%emt 0:11:00]} 20. d6 {[%emt 0:07:10]} O-O {[%emt 0:22:40]} 21. d7 {[%emt 0:00:30]} Rxd7 {[%emt 0:00:15]} 22. Rxd7 {[%emt 0:00:08]} Nxd7 {[%emt 0:00:05]} 23. Qxh5 {[%emt 0:00:36]} Nf6 {[%emt 0:00:20]} 24. Qe2 {[%emt 0:04:04]} Qd4 {[%emt 0:01:23]} 25. Bb7 {[%emt 0:02:28]} Rd8 {[%emt 0:04:13]} 26. c3 {[%emt 0:04:37]} Qd3 {[%emt 0:02:37]} 27. Qe1 {[%emt 0:01:26]} e4 {[%emt 0:00:48]} 28. Bxa6 {[%emt 0:02:37]} e3 {[%emt 0:01:19]} 29. Bxb5 {[%emt 0:01:07]} e2 {[%emt 0:01:41]} 30. Rg1 {[%emt 0:00:08]} Qe3 {[%emt 0:04:53]} 31. Ba4 {[%emt 0:02:45]} Ng4 {[%emt 0:01:44]} 32. h3 {[%emt 0:00:35]} Qf4 {[%emt 0:00:18]} 33. g3 {[%emt 0:00:45]} Qf3+ {[%emt 0:00:07]} 0-1

[Event "7th Francophone-ch 2019"]
[Site "Paris"]
[Date "2019.08.08"]
[Round "5.10"]
[White "Ek, Alexandre"]
[Black "Prie, Eric"]
[Result "1/2-1/2"]
[ECO "B01"]
[WhiteElo "2212"]
[BlackElo "2436"]
[Annotator "NA"]
[PlyCount "95"]
[EventDate "2019.08.04"]
[EventType "swiss"]
[EventCountry "FRA"]
[SourceTitle "playchess.com"]
[Source "ChessBase"]
[SourceQuality "1"]
[TimeControl "40/5400+30:1800+30"]

1. e4 {[%emt 0:00:00]} d5 {[%emt 0:08:05]} 2. exd5 {[%emt 0:00:00]} Qxd5 {[%emt 0:00:08]} 3. Nc3 {[%emt 0:00:00]} Qa5 {[%emt 0:00:09]} 4. d4 {[%emt 0:00:04]} Nf6 {[%emt 0:00:10]} 5. Nf3 {[%emt 0:00:24]} Bf5 {[%emt 0:00:06]} 6. Ne5 {[%emt 0:00:45]} c6 {[%emt 0:01:21]} 7. Bc4 {[%emt 0:00:17]} e6 {[%emt 0:00:09]} 8. g4 {[%emt 0:00:28]} Bg6 {[%emt 0:00:09]} 9. h4 {[%emt 0:00:11]} Nbd7 {[%emt 0:00:08]} 10. Nxd7 {[%emt 0:00:10]} Nxd7 {[%emt 0:00:09]} 11. h5 {[%emt 0:00:23]} Be4 {[%emt 0:00:09]} 12. O-O {[%emt 0:00:15]} Bd5 {[%emt 0:00:07]} 13. Nxd5 {[%emt 0:00:08]} cxd5 {[%emt 0:00:08]} 14. Bd3 {[%emt 0:00:06]} g6 {[%emt 0:00:05]} 15. h6 {[%emt 0:00:25]} Bd6 {[%emt 0:00:49]} 16. a4 {[%emt 0:00:14]} O-O-O {[%emt 0:03:12]} 17. Bd2 {[%emt 0:03:05]} Qc7 {[%emt 0:00:06]} 18. a5 {[%emt 0:00:29]} Kb8 {[%emt 0:01:32]} 19. a6 {[%emt 0:01:50]} b6 {[%emt 0:00:06]} 20. Rc1 {[%emt 0:15:36]} Bf4 {[%emt 0:00:26]} 21. c4 {[%emt 0:00:49]} Bxd2 {[%emt 0:00:47]} 22. Qxd2 {[%emt 0:00:10]} dxc4 {[%emt 1:22:59]} 23. Rxc4 {[%emt 0:10:12]} Qd6 {[%emt 0:00:30]} 24. Rfc1 {[%emt 0:12:23]} Rc8 {[%emt 0:00:00]} 25. Qe3 {[%emt 0:54:06]} f5 {[%emt 0:01:00]} 26. gxf5 {[%emt 0:00:00]} Rxc4 {[%emt 0:00:00]} 27. Rxc4 {[%emt 0:00:00]} gxf5 {[%emt 0:01:00]} 28. Bxf5 {[%emt 0:01:30]} Rg8+ {[%emt 0:00:00]} 29. Kf1 {[%emt 0:00:00]} b5 {[%emt 0:00:00]} 30. Qxe6 {[%emt 0:00:00]} Qxe6 {[%emt 0:00:00]} 31. Bxe6 {[%emt 0:00:00]} Rg6 {[%emt 0:00:00]} 32. Rc6 {[%emt 0:00:00]} Nb6 {[%emt 0:00:00]} 33. d5 {[%emt 0:00:00]} Rxh6 {[%emt 0:00:00]} 34. d6 {[%emt 0:00:00]} Rxe6 {[%emt 0:00:00]} 35. d7 {[%emt 0:00:00]} Rxc6 {[%emt 0:00:00]} 36. d8=Q+ {[%emt 0:00:00]} Nc8 {[%emt 0:00:00]} 37. Qd5 {[%emt 0:00:00]} Rxa6 {[%emt 0:00:00]} 38. Qxb5+ {[%emt 0:00:00]} Rb6 {[%emt 0:00:00]} 39. Qe5+ {[%emt 0:00:00]} Kb7 {[%emt 0:00:00]} 40. f4 {[%emt 0:00:00]} Nd6 {[%emt 0:00:00]} 41. f5 {[%emt 0:23:44]} Kc6 {[%emt 0:00:00]} 42. f6 {[%emt 0:11:57]} Rb5 {[%emt 0:00:00]} 43. Qe6 {[%emt 0:00:00]} Rb4 {[%emt 0:00:00]} 44. Kg1 {[%emt 0:00:00]} Rf4 {[%emt 0:00:00]} 45. Qe5 {[%emt 0:00:00]} Rf3 {[%emt 0:00:00]} 46. b4 {[%emt 0:00:00]} a6 {[%emt 0:00:00]} 47. Qc5+ {[%emt 0:00:36]} Kd7 {[%emt 0:00:00]} 48. Qe5 {[%emt 0:03:43] Ke8} 1/2-1/2

[Event "7th Francophone-ch 2019"]
[Site "Paris"]
[Date "2019.08.09"]
[Round "6.1"]
[White "Eugene, Floryan"]
[Black "Mastrovasilis, Athanasios"]
[Result "1/2-1/2"]
[ECO "C54"]
[WhiteElo "2300"]
[BlackElo "2518"]
[Annotator "ChessBase"]
[PlyCount "117"]
[EventDate "2019.08.04"]
[EventType "swiss"]
[EventCountry "FRA"]
[SourceTitle "playchess.com"]
[Source "ChessBase"]
[SourceQuality "1"]
[TimeControl "40/5400+30:1800+30"]

1. e4 {[%emt 0:06:38]} e5 {[%emt 0:00:00]} 2. Nf3 {[%emt 0:00:05]} Nc6 {[%emt 0:00:00]} 3. Bc4 {[%emt 0:00:05]} Bc5 {[%emt 0:00:04]} 4. O-O {[%emt 0:00:34]} Nf6 {[%emt 0:00:16]} 5. d3 {[%emt 0:00:15]} d6 {[%emt 0:01:34]} 6. c3 {[%emt 0:05:01]} a6 {[%emt 0:00:45]} 7. a4 {[%emt 0:00:05]} Ba7 {[%emt 0:00:09]} 8. Re1 {[%emt 0:01:51]} O-O {[%emt 0:01:37]} 9. h3 {[%emt 0:06:04]} Kh8 {[%emt 0:02:25]} 10. Nbd2 {[%emt 0:13:08]} Ng8 {[%emt 0:04:32]} 11. Nf1 {[%emt 0:00:08]} f5 {[%emt 0:00:25]} 12. exf5 {[%emt 0:00:28]} Bxf5 {[%emt 0:05:31]} 13. d4 {[%emt 0:00:52]} d5 {[%emt 0:06:58]} 14. Ba2 {[%emt 0:02:46]} Be4 {[%emt 0:21:17]} 15. N1h2 {[%emt 0:12:01]} exd4 {[%emt 0:01:18]} 16. Nxd4 {[%emt 0:04:58]} Nxd4 {[%emt 0:08:41]} 17. cxd4 {[%emt 0:00:04]} Nh6 {[%emt 0:09:19]} 18. Bxh6 {[%emt 0:10:23]} gxh6 {[%emt 0:00:07]} 19. Bb1 {[%emt 0:00:02]} Qh4 {[%emt 0:07:27]} 20. g3 {[%emt 0:12:47]} Qf6 {[%emt 0:11:35]} 21. Ng4 {[%emt 0:01:02]} Qxd4 {[%emt 0:00:09]} 22. Bxe4 {[%emt 0:01:11]} dxe4 {[%emt 0:00:13]} 23. Qxd4+ {[%emt 0:00:44]} Bxd4 {[%emt 0:00:02]} 24. Rxe4 {[%emt 0:00:08]} c5 {[%emt 0:00:37]} 25. Rc1 {[%emt 0:04:51]} Rae8 {[%emt 0:05:16]} 26. Rxe8 {[%emt 0:01:43]} Rxe8 {[%emt 0:00:01]} 27. Kf1 {[%emt 0:03:39]} h5 {[%emt 0:01:57]} 28. Nh2 {[%emt 0:00:04]} Rf8 {[%emt 0:00:36]} 29. Rc2 {[%emt 0:00:12]} b5 {[%emt 0:00:42]} 30. Kg2 {[%emt 0:01:08]} c4 {[%emt 0:04:36]} 31. Nf3 {[%emt 0:00:06]} Bf6 {[%emt 0:00:07]} 32. Nd2 {[%emt 0:01:59]} Re8 {[%emt 0:01:05]} 33. Kf3 {[%emt 0:00:26]} Rd8 {[%emt 0:04:10]} 34. Ne4 {[%emt 0:01:38]} Rd3+ {[%emt 0:00:14]} 35. Ke2 {[%emt 0:00:47]} Bd4 {[%emt 0:00:15]} 36. axb5 {[%emt 0:02:01]} axb5 {[%emt 0:00:12]} 37. Nc3 {[%emt 0:01:41]} Bxc3 {[%emt 0:02:58]} 38. Rxc3 {[%emt 0:00:10]} Rd5 {[%emt 0:00:12]} 39. h4 {[%emt 0:01:02]} Kg7 {[%emt 0:00:29]} 40. b3 {[%emt 0:01:00]} cxb3 {[%emt 0:01:07]} 41. Rxb3 {[%emt 0:07:42]} Kf6 {[%emt 0:01:42]} 42. Ke3 {[%emt 0:02:45]} Kf5 {[%emt 0:06:21]} 43. Rb4 {[%emt 0:00:53]} h6 {[%emt 0:01:28]} 44. Rf4+ {[%emt 0:01:40]} Kg6 {[%emt 0:00:22]} 45. Rd4 {[%emt 0:00:35]} Rc5 {[%emt 0:00:57]} 46. Rd6+ {[%emt 0:00:09]} Kg7 {[%emt 0:00:21]} 47. Rb6 {[%emt 0:01:04]} Rc3+ {[%emt 0:02:46]} 48. Ke4 {[%emt 0:05:35]} Rb3 {[%emt 0:01:20]} 49. f3 {[%emt 0:03:25]} Kh7 {[%emt 0:01:16]} 50. f4 {[%emt 0:01:09]} Rxg3 {[%emt 0:00:21]} 51. Rxb5 {[%emt 0:00:07]} Rg4 {[%emt 0:04:32]} 52. Rb7+ {[%emt 0:00:09]} Kg8 {[%emt 0:01:13]} 53. Ke5 {[%emt 0:01:49]} Rxh4 {[%emt 0:00:26]} 54. f5 {[%emt 0:00:46]} Ra4 {[%emt 0:01:13]} 55. Rb8+ {[%emt 0:06:29]} Kf7 {[%emt 0:00:17]} 56. Rb7+ {[%emt 0:00:03]} Kf8 {[%emt 0:00:41]} 57. Rb6 {[%emt 0:01:30]} Kg7 {[%emt 0:01:52]} 58. Rb7+ {[%emt 0:00:02]} Kf8 {[%emt 0:00:13]} 59. Rb8+ {[%emt 0:01:01]} 1/2-1/2

[Event "7th Francophone-ch 2019"]
[Site "Paris"]
[Date "2019.08.09"]
[Round "6.2"]
[White "Flom, Gabriel"]
[Black "Berend, Elvira"]
[Result "1-0"]
[ECO "E33"]
[WhiteElo "2494"]
[BlackElo "2344"]
[Annotator "ChessBase"]
[PlyCount "51"]
[EventDate "2019.08.04"]
[EventType "swiss"]
[EventCountry "FRA"]
[SourceTitle "playchess.com"]
[Source "ChessBase"]
[SourceQuality "1"]
[TimeControl "40/5400+30:1800+30"]

1. d4 {[%emt 0:00:00]} Nf6 {[%emt 0:00:00]} 2. c4 {[%emt 0:00:00]} e6 {[%emt 0:00:00]} 3. Nc3 {[%emt 0:00:00]} Bb4 {[%emt 0:00:00]} 4. Qc2 {[%emt 0:00:00]} Nc6 {[%emt 0:02:41]} 5. Nf3 {[%emt 0:01:51]} d6 {[%emt 0:01:29]} 6. Bd2 {[%emt 0:00:18]} O-O {[%emt 0:01:50]} 7. a3 {[%emt 0:00:06]} Bxc3 {[%emt 0:00:08]} 8. Bxc3 {[%emt 0:00:04]} Qe7 {[%emt 0:00:28]} 9. e4 {[%emt 0:03:50]} e5 {[%emt 0:01:26]} 10. d5 {[%emt 0:00:03]} Nb8 {[%emt 0:04:14]} 11. Nd2 {[%emt 0:00:48]} Nh5 {[%emt 0:07:45]} 12. g3 {[%emt 0:00:03]} f5 {[%emt 0:01:40]} 13. Be2 {[%emt 0:00:15]} Qf7 {[%emt 0:00:18]} 14. O-O-O {[%emt 0:12:06]} fxe4 {[%emt 0:27:37]} 15. Nxe4 {[%emt 0:00:11]} Bf5 {[%emt 0:01:38]} 16. Bd3 {[%emt 0:00:12]} h6 {[%emt 0:03:05]} 17. f4 {[%emt 0:01:47]} exf4 {[%emt 0:02:39]} 18. Nf6+ {[%emt 0:02:41]} Nxf6 {[%emt 0:01:25]} 19. Bxf5 {[%emt 0:00:06]} Kh8 {[%emt 0:00:14]} 20. Be6 {[%emt 0:02:47]} Qh5 {[%emt 0:00:24]} 21. g4 {[%emt 0:05:13]} Qh4 {[%emt 0:00:40]} 22. Be1 {[%emt 0:01:44]} Qh3 {[%emt 0:04:02]} 23. g5 {[%emt 0:00:04]} Ng4 {[%emt 0:00:06]} 24. gxh6 {[%emt 0:02:34]} Qh5 {[%emt 0:12:00]} 25. hxg7+ {[%emt 0:00:26]} Kxg7 {[%emt 0:00:07]} 26. Rg1 {[%emt 0:00:16]} 1-0